[Event "37th ECCC 2022"]
[Site "Mayrhofen"]
[Date "2022.10.06"]
[Round "4.39"]
[White "Roiz, Michael"]
[Black "Kerigan, Demre"]
[Result "0-1"]
[ECO "E94"]
[WhiteElo "2579"]
[BlackElo "2355"]
[Annotator "TA"]
[PlyCount "58"]
[EventDate "2022.10.03"]
[EventType "team-tourn"]
[EventCountry "AUT"]
[SourceTitle "playchess.com"]
[Source "ChessBase"]
[SourceQuality "1"]
[TimeControl "40/5400+30:1800+30"]

{[%evp 16,58,38,39,35,45,34,44,91,104,96,61,63,-18,-16,-14,25,29,97,97,101,88,115,125,120,108,104,114,110,102,109,109,104,116,110,56,64,-238,-238,-242,-233,-210,-172,-248,-170]} 1. d4 {[%emt 0:00:03]} Nf6 {[%emt 0:00:19]} 2. c4 {[%emt 0:00:20]} g6 {[%emt 0:00:11]} 3. Nc3 {[%emt 0:00:06]} Bg7 {[%emt 0:00:11]} 4. e4 {[%emt 0:00:06]} d6 {[%emt 0:00:06]} 5. Be2 {[%emt 0:00:04]} O-O {[%emt 0:00:10]} 6. Nf3 {[%emt 0:00:04]} e5 {[%emt 0:00:43]} 7. O-O {[%emt 0:00:05]} Na6 {[%emt 0:00:30]} 8. Re1 {[%emt 0:02:17]} c6 {[%emt 0:02:02]} 9. Be3 {[%emt 0:01:28]} Ng4 {[%emt 0:01:25] E94: King's Indian: Classical: 6 Be2 e5 7 0-0: Various Black 7th moves.} 10. Bg5 {[%emt 0:00:53]} f6 {[%emt 0:01:01]} 11. Bh4 {[%emt 0:00:16]} g5 {[%emt 0:00:55]} (11... Nh6 $14 {deserves consideration.}) 12. Bg3 $16 {[%emt 0:00:14]} Nh6 {[%emt 0:02:55]} 13. h3 {[%emt 0:12:53][%cal Oc4c5]} f5 {[%emt 0:23:06] [#]} 14. dxe5 $146 {[%emt 0:25:32]} (14. exf5 $1 $14 Nxf5 15. dxe5) ({Predecessor:} 14. exf5 Nxf5 15. dxe5 Nxg3 16. fxg3 g4 17. hxg4 Qb6+ 18. Kh2 Bxg4 19. Ng5 Bf5 20. Bd3 Rae8 21. Bxf5 Rxf5 22. Qh5 {1-0 (22) Lutz,C (2445)-Bernard,C (2335) Bad Wildbad 1990}) 14... f4 $11 {[%emt 0:00:58]} 15. Bh2 {[%emt 0:00:12]} g4 {[%emt 0:28:24]} 16. hxg4 {[%emt 0:01:04]} ({Inferior is} 16. exd6 gxf3 17. Bxf3 Be5 $17) 16... Nxg4 {[%emt 0:03:05]} (16... dxe5 $11 17. g5 Nf7) 17. exd6 $16 {[%emt 0:17:13] Threatens to win with Na4.} Qb6 {[%emt 0:01:27][%csl LRb2,LRf2]} 18. c5 $1 {[%emt 0:00:31]} Qxc5 {[%emt 0:11:38]} 19. Rf1 {[%emt 0:26:11]} Be6 {[%emt 0:00:27]} 20. e5 {[%emt 0:03:38]} Nxe5 {[%emt 0:00:52]} 21. Nxe5 {[%emt 0:03:53]} Qxe5 {[%emt 0:06:31]} 22. Re1 {[%emt 0:01:10] Hoping for Bxa6.} Qf6 {[%emt 0:02:57]} 23. Bxa6 {[%emt 0:02:15]} bxa6 {[%emt 0:00:07]} 24. Qf3 {[%emt 0:00:04]} Qg6 {[%emt 0:02:45] [#]} 25. Bxf4 {[%emt 0:01:00]} ({White should try} 25. Qe4 $1 $16 {[%cal Re4e6]} Bd7 26. Qc4+ (26. Bxf4 Rab8 $16) 26... Qf7 27. Qxa6) 25... Bxc3 $14 {[%emt 0:00:43][%mdl 64] Deflection} 26. Qxc3 {[%emt 0:01:12][%mdl 8192] White does not recover from this.} ({Avoid the trap} 26. bxc3 $2 Bd5 27. Qg3 {[#]} Rxf4 $1 {[%mdl 512]} 28. Qxg6+ hxg6 $19) (26. Rxe6 $1 $14 Qxe6 27. bxc3) 26... Rxf4 $19 {[%emt 0:00:46] Dancing on a razor blade. Black is clearly better.} 27. Qxc6 {[%emt 0:00:02]} Rc8 {[%emt 0:02:34]} 28. Qb7 {[%emt 0:01:03]} Rf7 {[%emt 0:02:09] Against d7} 29. Qxa6 {[%emt 0:00:23]} (29. Qe4 $142 Qxe4 30. Rxe4) 29... Rcf8 {[%emt 0:00:38] Weighted Error Value: White=0.25 (precise) /Black=0.14 (very precise)} 0-1

[Event "37th ECCC 2022"]
[Site "Mayrhofen"]
[Date "2022.10.06"]
[Round "4.40"]
[White "Ondersteijn, Niels"]
[Black "Postny, Evgeny"]
[Result "0-1"]
[ECO "E15"]
[WhiteElo "2382"]
[BlackElo "2573"]
[Annotator "TA"]
[PlyCount "114"]
[EventDate "2022.10.03"]
[EventType "team-tourn"]
[EventCountry "AUT"]
[SourceTitle "playchess.com"]
[Source "ChessBase"]
[SourceQuality "1"]
[TimeControl "40/5400+30:1800+30"]

{[%evp 13,114,19,16,8,23,17,23,0,0,27,34,32,31,32,38,34,44,54,73,22,25,21,25,25,25,25,26,22,30,20,14,7,6,0,0,0,2,0,0,0,0,0,0,0,0,0,0,0,0,-15,-16,-87,-95,-93,-86,-121,-121,-188,-141,-143,-103,-103,-100,-131,-122,-122,-107,-141,-127,-135,-131,-143,-129,-128,-122,-129,-122,-135,-135,-170,-173,-168,-137,-157,-125,-250,-250,-238,-244,-251,-241,-231,-252,-223,-193,-193,-185,-196,-185,-185,-185,-213,-211]} 1. d4 {[%emt 0:00:07]} Nf6 {[%emt 0:00:49]} 2. c4 {[%emt 0:00:24]} e6 {[%emt 0:00:04]} 3. Nf3 {[%emt 0:00:26]} b6 {[%emt 0:00:32]} 4. g3 {[%emt 0:00:33]} Bb4+ {[%emt 0:01:03]} 5. Bd2 {[%emt 0:00:50]} Bxd2+ {[%emt 0:00:18]} 6. Qxd2 {[%emt 0:00:45]} Ba6 {[%emt 0:00:07]} 7. b3 {[%emt 0:00:27]} d5 {[%emt 0:01:16]} 8. cxd5 {[%emt 0:04:30] E15: Queen's Indian: 4 g3 sidelines, 4 g3 Ba6 and 4 g3 Bb7 early deviations.} Ne4 {[%emt 0:02:12] is the legacy move (8...exd5).} 9. Qc2 {[%emt 0:03:14]} exd5 {[%emt 0:01:50]} 10. Bg2 {[%emt 0:03:50] White has an edge.} O-O {[%emt 0:01:50]} 11. O-O {[%emt 0:04:20]} c5 {[%emt 0:13:15]} 12. Nc3 {[%emt 0:19:43]} Nxc3 {[%emt 0:15:43]} 13. Qxc3 {[%emt 0:00:08]} Bxe2 {[%emt 0:00:14]} 14. Rfe1 {[%emt 0:03:40]} Bxf3 {[%emt 0:01:21]} 15. Qxf3 {[%emt 0:09:22] [#]} Na6 $146 {[%emt 0:01:50]} ({Predecessor:} 15... Nd7 16. Qxd5 Rc8 17. Rad1 cxd4 18. Qxd4 Nf6 19. Qb4 Qc7 20. Re7 Qc2 21. Qd2 a5 {1-0 (61) Ding,L (2766)-Tomashevsky,E (2728) Huaian 2016}) 16. dxc5 {[%emt 0:05:26]} (16. Qxd5 $16 {Black must now prevent Qc4.} Rb8 17. Rad1) 16... Nxc5 $11 {[%emt 0:00:15]} 17. Qxd5 {[%emt 0:02:33]} Rc8 {[%emt 0:04:06]} 18. Rad1 {[%emt 0:03:18] Threatening b4.} Qf6 {[%emt 0:08:30]} 19. Qd4 {[%emt 0:02:30]} Qxd4 {[%emt 0:05:57]} 20. Rxd4 {[%emt 0:00:06]} Rc7 {[%emt 0:00:45] Inhibits Re7.} 21. h4 {[%emt 0:06:27]} g6 {[%emt 0:01:04]} 22. Red1 {[%emt 0:03:45]} Kg7 {[%emt 0:06:33]} 23. Bf1 {[%emt 0:08:08]} Re8 {[%emt 0:03:20]} 24. b4 {[%emt 0:01:59]} Ne6 {[%emt 0:02:07]} 25. Rd6 {[%emt 0:01:01]} Nf8 {[%emt 0:03:36]} 26. a4 {[%emt 0:01:44]} Re4 {[%emt 0:02:23]} 27. R6d4 {[%emt 0:02:10]} Rxd4 {[%emt 0:00:19]} 28. Rxd4 {[%emt 0:00:02][%mdl 4096] Endgame KRB-KRN} Ne6 {[%emt 0:00:24]} 29. Rd6 {[%emt 0:01:18]} Kf6 {[%emt 0:01:20]} 30. Rd5 {[%emt 0:02:33]} Ke7 {[%emt 0:02:08]} 31. Bb5 {[%emt 0:01:42] Against Rd7} Rc1+ {[%emt 0:01:47]} 32. Bf1 {[%emt 0:04:36]} (32. Kg2 $11 {remains equal.}) 32... Rb1 $17 {[%emt 0:00:59]} 33. b5 {[%emt 0:01:31]} Ra1 {[%emt 0:00:44]} 34. h5 {[%emt 0:01:01]} Rxa4 {[%emt 0:01:03] Black is more active.} 35. Bh3 {[%emt 0:00:42]} (35. hxg6 $17 {was necessary.} hxg6 36. Rd1) 35... f5 {[%emt 0:01:38]} (35... Ra1+ $19 36. Bf1 Nc7) 36. Rd1 {[%emt 0:00:49]} Rd4 {[%emt 0:02:34]} 37. Ra1 {[%emt 0:00:29]} Rd7 {[%emt 0:00:05]} ({But not} 37... gxh5 $6 38. Rxa7+ Kf6 39. Rxh7 $11) 38. Bf1 {[%emt 0:01:02]} gxh5 {[%emt 0:01:24]} 39. Bc4 {[%emt 0:01:30]} Rc7 {[%emt 0:06:02]} 40. Be2 {[%emt 0:01:06]} Nd4 {[%emt 0:00:59]} 41. Bd3 {[%emt 0:04:04]} Kf6 {[%emt 0:03:00][%cal Oh5h4]} 42. Kg2 {[%emt 0:00:46]} h4 {[%emt 0:06:39]} 43. Ra4 {[%emt 0:02:55]} Ke5 {[%emt 0:00:41]} 44. gxh4 {[%emt 0:01:02]} Ne6 {[%emt 0:05:51] [#] aiming for ...Nf4+.} 45. Kh2 {[%emt 0:01:29]} Nc5 {[%emt 0:02:52]} 46. Rc4 {[%emt 0:00:14]} Rd7 {[%emt 0:02:01]} 47. f4+ {[%emt 0:01:26]} Ke6 {[%emt 0:00:49]} 48. Bf1 {[%emt 0:01:28]} Rd2+ {[%emt 0:00:28]} 49. Kg1 {[%emt 0:01:15]} (49. Kh3 $17) 49... Kd5 $19 {[%emt 0:00:20]} 50. Rc1 {[%emt 0:01:10]} Ke4 {[%emt 0:02:14]} 51. Bh3 {[%emt 0:02:52]} Kxf4 {[%emt 0:03:42] [#] Threatens to win with ...Nd3.} 52. Rf1+ {[%emt 0:00:24]} Kg3 {[%emt 0:00:10]} 53. Bxf5 {[%emt 0:00:18]} Rg2+ {[%emt 0:01:34] Black is clearly better.} ({Inferior is} 53... Kxh4 54. Bxh7 Kg3 55. Re1 $17) 54. Kh1 {[%emt 0:00:01]} Rh2+ {[%emt 0:00:06]} 55. Kg1 {[%emt 0:00:02]} Rxh4 {[%emt 0:00:21]} 56. Re1 {[%emt 0:01:30]} h6 {[%emt 0:02:05]} 57. Bc2 {[%emt 0:00:56]} Rc4 {[%emt 0:02:01] Weighted Error Value: White=0.14 (very precise) /Black=0.05 (flawless)} 0-1

[Event "37th ECCC 2022"]
[Site "Mayrhofen"]
[Date "2022.10.06"]
[Round "4.41"]
[White "Huzman, Alexander"]
[Black "Okkes, Menno"]
[Result "1-0"]
[ECO "D78"]
[WhiteElo "2535"]
[BlackElo "2328"]
[Annotator "TA"]
[PlyCount "81"]
[EventDate "2022.10.03"]
[EventType "team-tourn"]
[EventCountry "AUT"]
[SourceTitle "playchess.com"]
[Source "ChessBase"]
[SourceQuality "1"]
[TimeControl "40/5400+30:1800+30"]

{[%evp 12,81,11,20,25,24,25,0,7,9,14,-17,0,8,12,0,0,-27,10,14,9,15,36,15,61,63,66,13,13,12,12,0,0,16,41,37,85,18,15,14,23,16,64,60,126,134,134,125,285,273,287,278,351,333,446,444,545,447,522,571,474,474,474,471,742,663,737,729,679,642,770,763]} 1. Nf3 {[%emt 0:00:02]} d5 {[%emt 0:02:21]} 2. g3 {[%emt 0:00:26]} g6 {[%emt 0:00:17]} 3. Bg2 {[%emt 0:01:23]} Bg7 {[%emt 0:02:07]} 4. d4 {[%emt 0:01:20]} Nf6 {[%emt 0:00:05]} 5. O-O {[%emt 0:00:26]} O-O {[%emt 0:00:05]} 6. c4 {[%emt 0:00:04]} c6 {[%emt 0:00:04] 6...c6 is better than 6...dxc4.} 7. Qa4 {[%emt 0:02:37]} Nfd7 {[%emt 0:20:45] D78: Fianchetto Grünfeld: 6 0-0 c6.} 8. cxd5 {[%emt 0:02:03]} cxd5 {[%emt 0:00:53]} 9. Nc3 {[%emt 0:01:14]} Nb6 {[%emt 0:00:12] The position is equal.} 10. Qd1 {[%emt 0:06:24]} Nc6 {[%emt 0:00:36]} 11. Bf4 {[%emt 0:02:35]} Be6 {[%emt 0:10:04]} 12. b3 {[%emt 0:07:57]} Qd7 {[%emt 0:05:00] [#]} 13. Re1 $146 {[%emt 0:00:54]} ({Predecessor:} 13. Qd2 Rac8 14. Rac1 Rfd8 15. Rfd1 f6 16. Bh6 Bh8 17. h4 Bf7 18. Kh2 e6 19. e4 dxe4 20. Nxe4 {1-0 (52) Stein,R (2287)-To,N (2363) Budapest 2019}) 13... Bh3 {[%emt 0:01:56]} 14. Bh1 {[%emt 0:00:29]} Bg4 {[%emt 0:00:24]} 15. Ne5 $1 {[%emt 0:03:53]} Nxe5 {[%emt 0:00:56]} 16. dxe5 {[%emt 0:00:09][%cal Rc3d5]} Rfd8 {[%emt 0:11:01]} 17. Qd4 {[%emt 0:03:47]} Rac8 {[%emt 0:15:10]} (17... Qf5 $1 $11) 18. Rac1 $14 {[%emt 0:01:53]} Qe6 {[%emt 0:02:22]} 19. h4 {[%emt 0:05:12]} ({Better is} 19. Nb5 $14) 19... f6 $11 {[%emt 0:01:41]} 20. exf6 {[%emt 0:00:33]} Qxf6 {[%emt 0:01:19]} 21. Qxf6 {[%emt 0:03:40]} Bxf6 {[%emt 0:00:07]} 22. Bd2 {[%emt 0:00:06]} Kg7 {[%emt 0:08:17]} 23. a4 {[%emt 0:06:46]} Rc5 {[%emt 0:04:08] [#]} (23... e6 $14 {might be stronger.}) 24. e4 {[%emt 0:08:54]} ({White should try} 24. Nb5 $1 $16 Rxc1 25. Rxc1) 24... dxe4 {[%emt 0:00:32]} 25. Nxe4 {[%emt 0:00:39]} Rxc1 {[%emt 0:00:14]} 26. Rxc1 {[%emt 0:04:29]} Be5 {[%emt 0:02:56]} (26... Bd4 $11) 27. Be3 $14 {[%emt 0:02:03]} Rd1+ {[%emt 0:00:56]} (27... Nc8 $14) 28. Rxd1 $16 {[%emt 0:00:27]} Bxd1 {[%emt 0:00:06]} 29. Nc5 {[%emt 0:00:04]} Nc8 $2 {[%emt 0:02:21] [#] A mistake that costs the game.} (29... Bc3 $16 {was called for.} 30. Bxb7 Kf7) 30. Bxb7 $18 {[%emt 0:01:27]} Nd6 {[%emt 0:00:04]} 31. Bd5 {[%emt 0:00:55]} a5 {[%emt 0:01:58]} 32. Bd2 {[%emt 0:00:56] Inhibits Bc3.} Nf5 {[%emt 0:02:04]} 33. Bxa5 {[%emt 0:03:05] White is clearly winning.} Nd4 {[%emt 0:02:26]} 34. Ne6+ {[%emt 0:00:29]} Nxe6 {[%emt 0:00:28]} 35. Bxe6 {[%emt 0:00:31][%mdl 4096] Endgame KBB-KBB} Bf3 {[%emt 0:01:00]} 36. Bd2 {[%emt 0:00:24]} Kf6 {[%emt 0:00:07]} 37. Bc4 {[%emt 0:00:14]} Bd6 {[%emt 0:00:08]} (37... e6 $142 38. Bg5+ Kf7) 38. a5 {[%emt 0:00:30]} e5 {[%emt 0:00:52]} 39. b4 {[%emt 0:00:50][%cal Bb3b4,Bb4b5][%mdl 32]} Ke7 {[%emt 0:00:07]} 40. b5 {[%emt 0:01:57]} Kd7 {[%emt 0:00:19]} 41. Be3 {[%emt 0:30:40] Weighted Error Value: White=0.15 (very precise) /Black=0.30} 1-0

[Event "37th ECCC 2022"]
[Site "Mayrhofen"]
[Date "2022.10.06"]
[Round "4.42"]
[White "Rademakers, Evert"]
[Black "Kobo, Ori"]
[Result "0-1"]
[ECO "D35"]
[WhiteElo "2272"]
[BlackElo "2544"]
[Annotator "TA"]
[PlyCount "94"]
[EventDate "2022.10.03"]
[EventType "team-tourn"]
[EventCountry "AUT"]
[SourceTitle "playchess.com"]
[Source "ChessBase"]
[SourceQuality "1"]
[TimeControl "40/5400+30:1800+30"]

{[%evp 10,93,16,13,38,31,35,18,17,19,29,28,23,-7,0,0,-4,-6,-20,-10,5,-20,-26,-62,-30,-51,-44,-64,-41,-149,-104,-99,-100,-86,-80,-96,-70,-80,-89,-105,-99,-104,-86,-83,-87,-172,-70,-63,-68,-67,-62,-77,-77,-110,-122,-131,-157,-148,-112,-176,-166,-176,0,-150,0,-193,-192,-196,-185,-185,-185,-189,-188,-193,-185,-190,-173,-196,-188,-185,-167,-165,-180,-1215,-1132,-29999]} 1. d4 {[%emt 0:00:03]} d5 {[%emt 0:00:25]} 2. c4 {[%emt 0:00:11]} e6 {[%emt 0:00:15]} 3. Nc3 {[%emt 0:00:15]} Nf6 {[%emt 0:00:13]} 4. cxd5 {[%emt 0:00:11]} exd5 {[%emt 0:00:07]} 5. Bg5 {[%emt 0:00:04]} c6 {[%emt 0:00:26]} 6. e3 {[%emt 0:00:50]} Be6 {[%emt 0:01:32] 6...Bd6 is a critical line. D35: Queen's Gambit Declined: Exchange Variation.} 7. Bd3 {[%emt 0:00:56]} Nbd7 {[%emt 0:01:23]} 8. Nge2 {[%emt 0:02:44]} h6 {[%emt 0:00:20] The position is equal.} 9. Bf4 {[%emt 0:04:01]} g5 {[%emt 0:01:03]} 10. Bg3 {[%emt 0:00:46]} Nh5 {[%emt 0:00:21]} 11. h4 {[%emt 0:16:41]} Nxg3 {[%emt 0:03:40]} 12. Nxg3 {[%emt 0:02:17]} gxh4 {[%emt 0:00:21]} 13. Nf5 {[%emt 0:03:03] [#]} Bxf5 $146 {[%emt 0:18:26]} ({Predecessor:} 13... Qg5 14. Nxh4 O-O-O 15. Qc2 Kb8 16. O-O-O c5 17. f4 Qg3 18. f5 Qxe3+ 19. Kb1 cxd4 20. fxe6 fxe6 {1-0 (110) Donchenko,A (2636)-Andreikin,D (2724) Chess.com INT 2022}) 14. Bxf5 {[%emt 0:00:14]} Nb6 {[%emt 0:02:31]} 15. Qe2 {[%emt 0:18:26]} Qg5 {[%emt 0:08:06][%csl LRf5,LRg2]} 16. e4 {[%emt 0:10:32]} Bb4 {[%emt 0:01:39]} 17. O-O $1 {[%emt 0:06:22][%cal Oc3d5]} ({Much worse is} 17. exd5+ Kf8 18. Qf3 (18. Qe5 $2 Re8 $19) 18... Nxd5 $17) 17... Kf8 {[%emt 0:03:41]} 18. Bh3 {[%emt 0:02:51]} Qf4 {[%emt 0:11:38] And now ...Re8 would win.} 19. Kh1 {[%emt 0:08:27]} ({White should play} 19. Rfe1 $15) 19... dxe4 {[%emt 0:06:51]} 20. Qxe4 {[%emt 0:01:13]} Qxe4 {[%emt 0:01:00]} 21. Nxe4 {[%emt 0:00:03]} Kg7 {[%emt 0:02:58]} 22. a3 {[%emt 0:09:37]} Be7 {[%emt 0:03:21]} 23. Rfe1 {[%emt 0:00:29]} Rhe8 {[%emt 0:03:13]} 24. Bg4 {[%emt 0:00:50]} Rad8 {[%emt 0:01:46]} 25. Nc5 {[%emt 0:07:34]} Bxc5 {[%emt 0:10:16]} 26. dxc5 {[%emt 0:00:02]} Nc4 {[%emt 0:03:02]} 27. b4 {[%emt 0:02:11]} (27. Rxe8 $17 {might work better.} Rxe8 28. b3) 27... Ne5 {[%emt 0:02:23]} ({Black should try} 27... Rxe1+ $19 28. Rxe1 Nxa3) 28. Re4 $15 {[%emt 0:01:26]} Nd3 {[%emt 0:02:34][%csl LRe4,LRf2] Prevents Rae1.} 29. Rxe8 {[%emt 0:00:02]} Rxe8 {[%emt 0:00:07][%mdl 4096] Endgame KRB-KRN} 30. Kg1 {[%emt 0:00:08]} Ne5 {[%emt 0:04:04] Black is more active.} 31. Be2 {[%emt 0:00:52]} Rd8 {[%emt 0:00:44]} 32. Re1 {[%emt 0:01:43]} Kf6 {[%emt 0:00:55]} 33. Bf1 {[%emt 0:00:10]} Rd4 {[%emt 0:01:20][%cal Oh4h3] Against Re4} 34. Be2 {[%emt 0:00:56]} (34. Re3 $17 {was necessary.}) 34... Rd2 $19 {[%emt 0:00:57]} 35. Bf1 {[%emt 0:00:42]} Rd4 {[%emt 0:04:00] Inhibits Re4.} 36. Be2 $1 {[%emt 0:00:23]} Rd2 {[%emt 0:00:54]} 37. Bf1 {[%emt 0:00:50]} Ra2 {[%emt 0:00:10]} 38. Re4 {[%emt 0:00:27]} h3 {[%emt 0:01:11]} ({Weaker is} 38... Rxa3 39. Rxh4 a5 40. bxa5 $17) 39. gxh3 {[%emt 0:00:28]} Rxa3 {[%emt 0:00:27]} 40. Kg2 {[%emt 0:00:44]} Rb3 {[%emt 0:01:34]} 41. Rf4+ {[%emt 0:05:50]} Kg5 {[%emt 0:03:02]} 42. Rd4 {[%emt 0:01:05]} Ng6 {[%emt 0:02:52] Prevents f4+.} 43. b5 {[%emt 0:01:40]} Nh4+ {[%emt 0:13:18]} 44. Kh1 {[%emt 0:00:05]} Rb1 {[%emt 0:02:02]} 45. Rg4+ {[%emt 0:00:11]} Kh5 {[%emt 0:00:15]} 46. Rg1 {[%emt 0:02:20] [#]} (46. Kg1) 46... Nf3 {[%emt 0:01:01]} 47. Be2 {[%emt 0:00:01]} Rxg1# {Weighted Error Value: White=0.47/Black=0.15 (very precise)} 0-1

[Event "37th ECCC 2022"]
[Site "Mayrhofen"]
[Date "2022.10.06"]
[Round "4.43"]
[White "Tabatabaei, M. Amin"]
[Black "Naumann, Alexander"]
[Result "1-0"]
[ECO "A05"]
[WhiteElo "2657"]
[BlackElo "2513"]
[Annotator "TA"]
[PlyCount "113"]
[EventDate "2022.10.03"]
[EventType "team-tourn"]
[EventCountry "AUT"]
[SourceTitle "playchess.com"]
[Source "ChessBase"]
[SourceQuality "1"]
[TimeControl "40/5400+30:1800+30"]

{[%evp 9,113,50,57,41,51,9,12,-18,-13,0,0,0,0,-4,0,0,0,0,0,22,10,0,0,0,0,-15,-8,-28,-20,-14,-10,-12,-12,-12,-13,-61,-5,-6,0,-5,0,0,0,0,0,0,0,0,0,0,5,1,2,0,0,0,0,0,0,0,8,8,127,113,128,142,128,125,189,189,228,195,195,195,280,289,319,201,435,432,420,406,324,117,147,147,903,852,828,827,822,822,692,685,563,562,1572,1565,29949,29940,29964,29963,29957,29953,29957,29954]} 1. Nf3 {[%emt 0:00:05]} Nf6 {[%emt 0:00:25]} 2. c4 {[%emt 0:00:10]} g6 {[%emt 0:04:11]} 3. Nc3 {[%emt 0:00:09]} Bg7 4. e4 {[%emt 0:00:40]} e5 5. Nxe5 {[%emt 0:00:30]} O-O {[%emt 0:00:25][%cal Of6e4]} 6. Nf3 {[%emt 0:01:47] A16: English Opening: 1...Nf6 with ...d5.} Re8 {[%emt 0:00:09]} 7. Bd3 {[%emt 0:01:31]} Nxe4 {[%emt 0:05:23]} 8. O-O {[%emt 0:08:09] [#] The position is equal.} Nf6 $146 {[%emt 0:08:42]} ({Predecessor:} 8... Nxc3 9. dxc3 d6 10. h3 Nc6 11. Bg5 Bf6 12. Be3 b6 13. Re1 Bb7 14. Bf1 Ne5 15. Nxe5 Bxe5 {½-½ (45) Ioannidis,E (2486)-Krstulovic,A (2411) Vrnjacka Banja 2022}) 9. Bc2 {[%emt 0:05:17]} d5 {[%emt 0:01:44]} 10. cxd5 {[%emt 0:01:22]} Nxd5 {[%emt 0:08:46]} 11. d4 {[%emt 0:00:24]} c6 {[%emt 0:02:47]} 12. Bg5 {[%emt 0:02:03][%cal Bc1g5,Bg5h4,Bh4g3][%mdl 32]} Qd6 {[%emt 0:18:01]} 13. Bh4 {[%emt 0:23:07]} Nxc3 {[%emt 0:10:04]} 14. bxc3 {[%emt 0:00:12]} Be6 {[%emt 0:00:00]} 15. Bg3 {[%emt 0:08:36]} Qa3 {[%emt 0:00:59][%csl LRa2,LRc3]} 16. Bb3 {[%emt 0:02:15]} Nd7 {[%emt 0:05:19]} 17. Bxe6 {[%emt 0:02:10]} Rxe6 {[%emt 0:00:19]} 18. d5 {[%emt 0:00:34]} cxd5 {[%emt 0:01:44]} 19. Qxd5 {[%emt 0:00:59]} Nb6 {[%emt 0:01:29]} 20. Qxb7 {[%emt 0:00:21]} Re7 {[%emt 0:01:31]} 21. Qc6 {[%emt 0:00:08] Black must now prevent Bd6.} Rc8 {[%emt 0:05:32]} (21... Bxc3 $2 22. Bd6 Bb4 23. Bxe7 Bxe7 24. Ne5 $18) 22. Qb5 {[%emt 0:03:10]} (22. Qd6 $11 {deserves consideration.} Qxd6 23. Bxd6) 22... Qxc3 {[%emt 0:01:00]} (22... Rxc3 $2 23. Rad1 Rb7 24. Rd8+ Bf8 25. Be5 $18) (22... Bxc3 $15 23. Rac1 Qxa2) 23. Rae1 $11 {[%emt 0:04:55]} Rxe1 {[%emt 0:01:57]} 24. Rxe1 {[%emt 0:00:22]} Qc6 {[%emt 0:05:21]} 25. Qxc6 {[%emt 0:03:23]} (25. Qb3 {keeps more tension.} a5 26. Ne5 Qd5 27. h3) 25... Rxc6 {[%emt 0:00:02]} 26. Re8+ {[%emt 0:01:46]} Bf8 {[%emt 0:00:01]} 27. Bf4 {[%emt 0:00:15]} Rc8 {[%emt 0:04:46]} 28. Rxc8 {[%emt 0:00:14]} Nxc8 {[%emt 0:00:01][%mdl 4096] Endgame KBN-KBN} 29. Kf1 {[%emt 0:00:11]} Nb6 {[%emt 0:01:06]} 30. Ke2 {[%emt 0:01:26]} Nd5 {[%emt 0:00:08]} 31. Be5 {[%emt 0:01:09]} Bc5 {[%emt 0:02:30]} 32. Nd2 {[%emt 0:00:59]} f6 {[%emt 0:01:38]} 33. Ne4 {[%emt 0:01:24][%csl LRc5,LRf6]} fxe5 {[%emt 0:02:18]} 34. Nxc5 {[%emt 0:00:06] KN-KN} Nc3+ {[%emt 0:00:06]} 35. Kd2 {[%emt 0:00:41]} Nd5 {[%emt 0:07:26]} (35... Nxa2 $11 36. Kd3 (36. Nd7 Kf7 $11) 36... Kf7) 36. Nd3 {[%emt 0:00:07]} e4 {[%emt 0:00:40]} 37. Nc5 {[%emt 0:00:05]} Kf7 {[%emt 0:01:39]} 38. Nxe4 {[%emt 0:00:18]} h6 {[%emt 0:00:08]} (38... Ke6 $16 39. Ng5+ Kf5) 39. Nc3 $18 {[%emt 0:00:58]} Nf6 {[%emt 0:00:36]} 40. Kd3 {[%emt 0:02:27]} Ke6 {[%emt 0:00:11]} 41. f3 {[%emt 0:33:43] Inhibits Ng4.} Ke5 {[%emt 0:31:12]} (41... Ne8 $142 42. Kd4 h5) 42. a4 {[%emt 0:01:19][%cal Ba2a4,Ba4a5][%mdl 32]} g5 {[%emt 0:00:00]} 43. g3 {[%emt 0:00:00]} h5 $2 {[%emt 0:00:00]} (43... Nd7 {was worth a try.} 44. Kc4 a6) 44. a5 {[%emt 0:00:00]} Nd7 {[%emt 0:00:00] [#]} 45. Kc4 $1 {[%emt 0:00:00]} a6 {[%emt 0:00:00]} 46. Nd5 $2 {[%emt 0:00:00]} (46. Ne2 $18) 46... Kd6 $16 {[%emt 0:00:00]} 47. f4 {[%emt 0:00:00] Inhibits Ne5+.} gxf4 {[%emt 0:00:00][%mdl 8192] Loses the game.} (47... h4 $16) 48. Nxf4 $18 {[%emt 0:00:00]} Ne5+ {[%emt 0:00:00] [#]} 49. Kb4 $1 {[%emt 0:00:00]} Ng4 {[%emt 0:00:00]} 50. h3 {[%emt 0:00:00]} Nf6 {[%emt 0:00:00]} 51. Kc4 {[%emt 0:00:00]} Kc6 52. h4 {[%emt 0:00:00]} Kd6 {[%emt 0:00:00]} 53. Kd4 {[%emt 0:00:00]} Kc6 {[%emt 0:00:00]} 54. Ke5 {[%emt 0:00:00] White mates.} Ng4+ {[%emt 0:00:00]} 55. Ke6 {[%emt 0:00:00]} Kb5 {[%emt 0:00:00]} 56. Nxh5 {[%emt 0:00:00]} Kxa5 {[%emt 0:00:00]} 57. Nf6 {[%emt 0:00:00] Weighted Error Value: White=0.13 (very precise) /Black=0.32} 1-0